bitfinex/quotes_ETHUSD_20250815
["timestamp","ask_amount","ask_price","bid_price","bid_amount"]
[1755231987610,10.62653485,4634.9,4634.8,0.001]
[1755231992834,4.20539785,4634.9,4634.8,0.001]
[1755231993036,10.62653485,4634.9,4634.8,0.001]
[1755231994542,10.62853485,4634.9,4634.8,0.001]
[1755231996912,9.74113485,4634.9,4634.8,0.001]
[1755231997929,2.73069187,4634.9,4634.8,0.001]
[1755231998148,2.26754385,4634.9,4634.8,0.001]
[1755231998666,0.11,4634.9,4634.8,0.001]
[1755231998867,0.002,4634.9,4634.8,0.4456]
[1755231999067,0.002,4634.9,4634.8,0.9293]
[1755231999371,0.002,4634.9,4634.8,11.26166106]
[1755232001535,0.002,4634.9,4634.8,17.27125146]
[1755232002167,0.002,4634.9,4634.8,13.96925146]
[1755232002369,0.002,4634.9,4634.8,17.27125146]
[1755232006856,0.002,4634.9,4634.8,10.33336106]
[1755232007052,0.002,4634.9,4634.8,13.63536106]
[1755232007271,0.002,4634.9,4634.8,15.79295146]
[1755232007501,0.002,4634.9,4634.8,14.07996106]
[1755232007725,0.002,4634.9,4634.8,16.23755146]
[1755232009015,0.002,4634.9,4634.8,17.37925146]
[1755232009868,0.002,4634.9,4634.8,14.73796106]
[1755232010113,0.002,4634.9,4634.8,16.89555146]
[1755232011108,0.002,4634.9,4634.8,17.37925146]
[1755232013207,0.002,4634.9,4634.8,16.87905146]
[1755232013404,0.002,4634.9,4634.8,17.33345146]
[1755232015516,0.002,4634.9,4634.8,13.57705146]
[1755232015695,0.002,4634.9,4634.8,14.29236106]
[1755232015890,0.002,4634.9,4634.8,16.44995146]
[1755232016499,23.11628868,4634.9,4634.8,10.001]
[1755232017287,23.11628868,4634.9,4634.8,0.001]
[1755232021016,16.69515168,4634.9,4634.8,0.001]
[1755232022599,2.15954385,4634.9,4634.8,0.001]
[1755232023112,3.10494385,4634.9,4634.8,0.001]
[1755232023297,2.15954385,4634.9,4634.8,0.001]
[1755232023723,17.13832061,4634.9,4634.8,0.001]
[1755232025593,23.55945761,4634.9,4634.8,0.001]
[1755232025797,24.02154342,4634.9,4634.8,0.001]
[1755232026623,24.12954342,4634.9,4634.8,0.001]
[1755232027206,24.21602142,4634.9,4634.8,0.001]
[1755232027932,24.21602142,4634.9,4633.5,0.22175473]
[1755232027933,2.15814917,4633.6,4633.5,0.22175473]
[1755232028093,2.15819574,4633.5,4633.0,10.001]
[1755232028299,10.15003412,4633.5,4633.0,0.001]
[1755232028510,9.79594831,4633.5,4633.0,0.001]
[1755232028694,13.08024667,4633.5,4633.0,0.001]
[1755232028918,16.2995725,4633.5,4633.0,0.001]
[1755232029237,17.2449725,4633.5,4633.0,0.001]
[1755232030007,16.2995725,4633.5,4633.0,0.001]
[1755232030307,2.70936467,4633.5,4633.0,0.001]
[1755232031929,17.2449725,4633.5,4633.0,0.001]
[1755232032503,20.5459725,4633.5,4633.0,0.001]
[1755232032698,19.6005725,4633.5,4633.0,0.001]
[1755232033527,20.5459725,4633.5,4633.0,0.001]
[1755232034819,3.85216893,4633.5,4633.0,0.001]
[1755232035018,3.409,4633.5,4633.0,0.001]
[1755232035212,0.108,4633.5,4633.0,0.001]
[1755232035431,3.409,4633.5,4633.0,0.001]
[1755232035625,5.56719574,4633.5,4633.0,0.001]
[1755232036838,2.26619574,4633.5,4633.0,0.001]
[1755232037035,2.15819574,4633.5,4633.0,0.001]
[1755232037541,8.57937932,4633.4,4633.0,0.001]
[1755232037747,2.26633549,4633.2,4633.0,0.001]
[1755232038046,8.71445168,4633.2,4633.0,0.001]
[1755232038238,8.68747249,4633.2,4633.0,0.001]
[1755232038414,10.00667278,4633.2,4633.0,0.001]
[1755232038616,10.65549078,4633.2,4633.0,0.001]
[1755232039447,4.23435378,4633.2,4633.0,0.001]
[1755232039743,10.65549078,4633.2,4633.0,0.001]
[1755232042516,4.23435378,4633.2,4633.0,0.001]
[1755232042732,10.65549078,4633.2,4633.0,0.001]
[1755232046346,11.11704376,4633.2,4633.0,0.001]
[1755232051658,11.69327576,4633.2,4633.0,0.001]
[1755232051865,4.69590676,4633.2,4633.0,0.001]
[1755232052072,11.11704376,4633.2,4633.0,0.001]
[1755232052571,11.69327576,4633.2,4633.0,0.001]
[1755232053365,11.68727576,4633.2,4633.0,0.001]
[1755232053573,11.11104376,4633.2,4633.0,0.001]
[1755232055242,11.31168076,4633.2,4633.0,0.001]
[1755232055442,12.07995657,4633.2,4633.0,0.001]
[1755232055969,11.31168076,4633.2,4633.0,0.001]
[1755232056133,11.11104376,4633.2,4633.0,0.001]
[1755232056339,11.31180972,4633.2,4633.0,0.001]
[1755232056570,2.15838207,4633.1,4633.0,0.001]
[1755232056774,14.8573369,4633.1,4633.0,0.001]
[1755232057057,14.38525713,4633.1,4633.0,0.001]
[1755232057363,13.4106596,4633.1,4633.0,0.001]
[1755232060773,13.20976171,4633.1,4633.0,0.001]
[1755232061140,9.90876171,4633.1,4633.0,0.001]
[1755232061473,13.20976171,4633.1,4633.0,0.001]
[1755232063674,9.90876171,4633.1,4633.0,0.001]
[1755232063838,13.20976171,4633.1,4633.0,0.001]
[1755232064786,2.15978597,4630.1,4629.2,0.2495]
[1755232064952,3.301,4630.0,4629.7,0.43]
[1755232065154,3.76429348,4630.0,4629.8,0.9154]
[1755232065353,3.301,4630.0,4629.6,0.108]
[1755232065553,3.332,4630.0,4629.9,0.9154]
[1755232065755,0.108,4630.2,4629.9,0.43]
[1755232066056,0.757065,4630.7,4630.0,0.9154]
[1755232066375,3.48979929,4630.7,4630.3,0.108]
[1755232066551,0.15779929,4630.7,4630.4,0.9154]
[1755232066753,0.108,4630.9,4630.5,0.9154]
[1755232067068,3.333,4631.3,4630.8,0.108]
[1755232067374,3.333,4631.3,4630.9,0.9154]
[1755232067548,3.333,4631.3,4631.0,0.9154]
[1755232067762,3.333,4631.3,4630.8,0.108]
[1755232067957,0.46329348,4631.4,4630.9,0.9154]
[1755232068170,0.46329348,4631.4,4631.0,0.9154]
[1755232068376,0.46329348,4631.4,4630.8,0.108]
[1755232068377,3.332,4631.4,4631.1,0.9154]
[1755232068573,3.332,4631.4,4631.2,0.9154]
[1755232068764,3.48992098,4631.4,4631.3,0.43]
[1755232068978,0.15792098,4631.4,4631.3,0.43]
[1755232069185,3.332,4631.4,4631.3,0.43]
[1755232069789,3.332,4631.4,4631.3,0.9154]
[1755232070189,3.331,4631.5,4631.3,0.9154]
[1755232070394,3.331,4631.5,4630.8,0.108]
[1755232070395,3.331,4631.5,4631.4,0.9154]
[1755232070692,0.46329348,4631.9,4631.4,0.9154]
[1755232070893,0.46329348,4631.9,4631.5,0.9154]
[1755232071111,0.46329348,4631.9,4630.5,0.55]
[1755232071112,0.108,4631.9,4631.2,0.108]
[1755232071269,3.331,4631.9,4631.7,0.108]
[1755232071472,3.331,4631.9,4631.8,0.43]
[1755232071766,3.331,4631.9,4631.7,0.108]
[1755232071975,0.02698734,4631.8,4631.7,0.108]
[1755232072177,3.331,4631.8,4631.7,0.108]
[1755232073577,3.331,4631.8,4631.7,0.5497]
[1755232073899,5.15114435,4632.9,4631.7,0.5497]
[1755232073900,0.46279055,4632.6,4631.7,1.0474]
[1755232074087,3.329,4632.5,4632.0,0.108]
[1755232074603,3.329,4632.5,4632.0,0.5497]
[1755232075419,3.329,4632.5,4632.0,0.108]
[1755232075720,3.329,4632.5,4632.1,0.4417]
[1755232076320,0.108,4632.6,4632.2,0.4417]
[1755232076520,1.97614396,4632.9,4632.4,0.108]
[1755232076707,3.328,4633.3,4632.5,0.4417]
[1755232076910,0.108,4633.5,4632.8,2.15850469]
[1755232077224,3.33,4633.6,4632.6,1.0477]
[1755232077393,3.33,4633.6,4633.3,0.108]
[1755232080321,0.108,4633.9,4633.3,0.108]
[1755232080527,3.328,4633.7,4633.3,0.5497]
[1755232080824,0.108,4633.9,4633.3,0.5497]
[1755232081022,3.327,4633.6,4633.3,1.0474]
[1755232081917,3.327,4633.6,4633.3,0.5497]
[1755232082315,3.327,4633.6,4633.3,0.108]
[1755232082631,0.002,4634.4,4633.3,0.108]
[1755232082632,0.002,4634.4,4633.3,2.7079889]
[1755232082847,0.002,4634.4,4633.3,4.2582887]
[1755232083015,0.002,4634.4,4633.3,4.24232392]
[1755232083935,0.002,4633.9,4633.3,4.24232392]
[1755232085838,0.002,4633.9,4633.3,3.30292392]
[1755232086040,0.002,4633.9,4633.3,2.8162889]
[1755232086247,0.002,4633.9,4633.3,3.2579889]
[1755232086412,0.002,4633.9,4633.3,3.7556889]
[1755232086608,0.002,4633.9,4633.3,3.77165368]
[1755232088360,0.002,4633.9,4633.3,3.7556889]
[1755232088548,0.002,4633.9,4633.3,4.68119392]
[1755232094465,1e-08,4633.4,4633.3,8.82119388]
[1755232094664,1e-08,4633.4,4633.3,25.41140171]
[1755232095576,0.002,4634.4,4634.3,2.70782318]
[1755232095869,0.002,4634.4,4634.3,3.882]
[1755232096074,0.002,4634.4,4634.3,6.6438094]
[1755232097560,0.002,4634.4,4634.3,11.09119976]
[1755232098855,0.002,4634.4,4634.3,11.53289976]
[1755232099032,0.002,4634.4,4634.3,12.03059976]
[1755232100036,0.002,4634.4,4634.3,11.53289976]
[1755232100238,0.002,4634.4,4634.3,11.09119976]
[1755232100472,0.002,4634.4,4634.3,6.6438094]
[1755232100635,0.002,4634.4,4634.3,11.09119976]
[1755232104572,0.002,4634.4,4634.3,11.19919976]
[1755232106497,0.9482,4634.4,4634.3,10.64219976]
[1755232106648,0.9482,4634.4,4634.3,10.03821354]
[1755232107052,0.4893,4634.4,4634.3,10.03821354]
[1755232107354,0.002,4634.4,4634.3,10.03821354]
[1755232107554,0.002,4634.4,4634.3,10.58821354]
[1755232107745,0.9482,4634.4,4634.3,10.58821354]
[1755232109374,0.002,4634.4,4634.3,10.58821354]
[1755232110076,0.9482,4634.4,4634.3,10.58821354]
[1755232111160,0.002,4634.4,4634.3,10.58821354]
[1755232111377,0.002,4634.4,4634.3,11.86282111]
[1755232112263,0.002,4634.4,4634.3,12.78042111]
[1755232112802,0.002,4634.4,4634.3,17.02842107]
[1755232113105,0.002,4634.4,4634.3,16.55222107]
[1755232114207,0.002,4634.4,4634.3,16.11082107]
[1755232117403,0.9482,4634.4,4634.3,16.11082107]
[1755232117606,0.9482,4634.4,4634.3,14.8362135]
[1755232118606,0.002,4634.4,4634.3,14.8362135]
[1755232122304,0.002,4634.4,4634.3,15.2776135]
[1755232122616,0.002,4634.4,4634.3,14.8362135]
[1755232143071,0.4347,4634.4,4634.3,8.80339032]
[1755232143256,0.8915,4634.4,4634.3,14.2652135]
[1755232143562,0.8915,4634.4,4634.3,14.8152135]
[1755232143865,0.002,4634.4,4634.3,14.8152135]
[1755232145461,0.002,4634.4,4634.3,16.51252588]
[1755232146464,0.8915,4634.4,4634.3,16.51252588]
[1755232147262,0.8915,4634.4,4634.3,14.8152135]
[1755232147846,0.8915,4634.4,4634.3,14.2652135]
[1755232148634,0.8915,4634.4,4634.3,14.8152135]
[1755232150973,0.8915,4634.4,4634.3,10.56721354]
[1755232151170,0.8915,4634.4,4634.3,7.85939036]
[1755232152643,0.8915,4634.4,4634.3,10.01721354]
[1755232155082,0.002,4634.4,4634.3,10.01721354]
[1755232155249,0.002,4634.4,4634.3,10.56721354]
[1755232156983,0.002,4634.4,4634.3,14.8152135]
[1755232158151,0.002,4634.4,4634.3,16.51252459]
[1755232158548,0.002,4634.4,4634.3,16.97822459]
[1755232158984,1e-08,4634.4,4634.3,12.26452463]
[1755232159275,1e-08,4634.4,4634.3,13.18662463]
[1755232159678,1e-08,4634.4,4634.3,12.73022463]
[1755232159884,1e-08,4634.4,4634.3,12.26452463]
[1755232162579,1e-08,4634.4,4634.3,12.70732463]
[1755232162787,1e-08,4634.4,4634.3,12.26452463]
[1755232162988,1e-08,4634.4,4634.3,13.18372463]
[1755232164481,1e-08,4634.4,4634.3,16.18372463]
[1755232166891,1e-08,4634.4,4634.3,15.70732463]
[1755232173475,1e-08,4634.4,4634.3,15.26452463]
[1755232174076,1e-08,4634.4,4634.3,19.51252459]
[1755232176010,1e-08,4634.4,4634.3,19.95532459]
[1755232178618,1e-08,4634.4,4634.3,19.51252459]
[1755232178983,1e-08,4634.4,4634.3,19.95532459]
[1755232179182,1e-08,4634.4,4634.3,20.04174559]
[1755232179516,1e-08,4634.4,4634.3,20.51814559]
[1755232180020,1e-08,4634.4,4634.3,19.59894559]
[1755232180519,1e-08,4634.4,4634.3,19.59994559]
[1755232182092,1e-08,4634.4,4634.3,19.51352459]
[1755232186525,1e-08,4634.4,4634.3,19.95632459]
[1755232187955,1e-08,4634.4,4634.3,19.51352459]
[1755232188932,1e-08,4634.4,4634.3,19.95632459]
[1755232189825,1e-08,4634.4,4634.3,20.04275059]
[1755232191293,1e-08,4634.4,4634.3,19.59995059]
[1755232195112,0.93450001,4634.4,4634.3,19.59995059]
[1755232195512,1e-08,4634.4,4634.3,19.59995059]
[1755232197319,1e-08,4634.4,4634.3,10.9622135]
[1755232197542,0.93450001,4634.4,4634.3,14.2642135]
[1755232198430,0.93450001,4634.4,4634.3,14.8142135]
[1755232198932,1e-08,4634.4,4634.3,14.8142135]
[1755232199134,0.93450001,4634.4,4634.3,14.8142135]
[1755232200248,0.93450001,4634.4,4634.3,10.01621354]
[1755232200548,0.93450001,4634.4,4634.3,7.85839036]
[1755232200753,0.93450001,4634.4,4634.3,4.44839036]
[1755232200964,1.39922613,4634.4,4634.3,4.44839036]
[1755232201256,3.55700275,4634.4,4634.3,0.001]
[1755232201425,3.09227663,4634.4,4634.3,0.001]
[1755232201948,0.93450001,4634.4,4634.3,0.001]
[1755232206034,1.04250001,4634.4,4634.3,0.001]
[1755232206547,3.22724883,4634.4,4634.3,0.001]
[1755232206966,10.11123384,4634.4,4634.3,0.001]
[1755232207265,10.08426164,4634.4,4634.3,0.001]
[1755232207479,9.62141363,4634.4,4634.3,0.001]
[1755232207837,1.04250001,4634.4,4634.3,0.001]
[1755232208036,1.36251542,4634.4,4634.3,0.001]
[1755232208466,3.52029204,4634.4,4634.3,0.001]
[1755232208765,1.25451542,4634.4,4634.3,0.001]
[1755232209452,3.11924883,4634.4,4634.3,0.001]
[1755232210172,3.09227663,4634.4,4634.3,0.001]
[1755232210371,3.20027663,4634.4,4634.3,0.001]
[1755232210667,1.04250001,4634.4,4634.3,0.001]
[1755232210841,0.93450001,4634.4,4634.3,0.001]
[1755232211634,0.96147221,4634.4,4634.3,0.001]
[1755232211839,0.93450001,4634.4,4634.3,0.001]
[1755232212062,0.96147221,4634.4,4634.3,0.001]
[1755232212775,0.93450001,4634.4,4634.3,0.001]
[1755232213668,3.11924883,4634.4,4634.3,0.001]
[1755232213884,0.93450001,4634.4,4634.3,0.001]
[1755232215193,0.96147221,4634.4,4634.3,0.001]
[1755232215682,0.93450001,4634.4,4634.3,0.001]
[1755232217251,3.09227663,4634.4,4634.3,0.001]
[1755232217686,0.93450001,4634.4,4634.3,0.001]
[1755232218004,1.04250001,4634.4,4634.3,0.001]
[1755232218892,3.20027663,4634.4,4634.3,0.001]
[1755232219264,3.22724883,4634.4,4634.3,0.001]
[1755232221075,2.15800945,4633.9,4633.8,0.001]
[1755232221384,25.60732939,4633.9,4633.8,0.001]
[1755232221587,9.14925458,4633.9,4633.8,0.001]
[1755232221787,3.06470945,4633.9,4633.8,0.001]
[1755232221997,3.09168456,4633.9,4633.8,0.001]
[1755232222291,2.15819574,4633.5,4633.4,0.001]
[1755232222493,25.93514998,4633.5,4633.4,0.001]
[1755232222656,25.93514998,4633.5,4630.9,3.4359]
[1755232222657,15.74863649,4633.0,4630.9,3.0]
[1755232223010,15.74863649,4633.0,4631.3,2.15920763]
[1755232223011,25.93885645,4633.0,4631.3,2.15920763]
[1755232223166,22.63185645,4633.0,4631.4,0.4359]
[1755232223372,27.58880443,4633.0,4631.4,0.4359]
[1755232223890,27.58880443,4633.0,4630.6,3.307]
[1755232223891,2.15861503,4632.6,4630.6,0.4359]
[1755232224058,6.421137,4632.5,4630.5,0.001]
[1755232224259,2.15922655,4631.3,4630.5,0.001]
[1755232224490,2.15940942,4630.9,4630.5,0.001]
[1755232224698,0.02699317,4630.8,4630.5,0.001]
[1755232224902,3.11308882,4630.8,4630.5,0.001]
[1755232225205,15.74975518,4630.6,4630.5,0.001]
[1755232225574,19.05775518,4630.6,4630.5,0.001]
[1755232225776,0.16395764,4630.8,4630.5,0.001]
[1755232225987,3.309,4631.0,4630.5,0.001]
[1755232226159,0.9266,4631.4,4630.5,0.001]
[1755232226360,2.15894973,4631.9,4630.5,0.001]
[1755232226361,9.730137,4631.3,4630.5,0.001]
[1755232226558,3.309,4631.2,4630.6,0.4359]
[1755232226785,3.309,4631.4,4630.5,0.001]
[1755232226979,2.15931164,4631.2,4630.5,0.001]
[1755232227192,3.309,4631.3,4630.5,0.001]
[1755232227363,14.54379925,4631.1,4630.5,0.001]
[1755232227563,3.309,4631.0,4630.5,0.001]
[1755232227792,0.16093216,4631.3,4630.5,0.001]
[1755232228000,0.9266,4630.9,4630.5,0.001]
[1755232228311,3.309,4630.8,4630.5,0.001]
[1755232228464,2.15929523,4631.2,4630.5,0.001]
[1755232228664,10.03772652,4631.1,4630.5,0.001]
[1755232228864,3.61658952,4631.1,4630.5,0.001]
[1755232229296,3.46810143,4631.4,4630.5,0.4369]
[1755232229505,2.15912414,4631.6,4630.5,0.4369]
[1755232229663,3.309,4631.4,4630.5,0.4369]
[1755232229993,3.309,4631.3,4630.5,0.4369]
[1755232230419,0.4946,4631.7,4630.5,0.4369]
[1755232230575,0.46102663,4632.0,4630.6,0.56599255]
[1755232230897,3.309,4631.9,4631.2,2.15926525]
[1755232231063,3.309,4631.9,4631.2,0.4359]
[1755232231267,3.9018882,4631.9,4631.2,0.4359]
[1755232231707,4.0098882,4631.9,4631.3,0.108]
[1755232232515,3.308,4632.3,4631.7,0.108]
[1755232232970,0.46101692,4632.3,4630.8,0.55]
[1755232233169,3.309,4632.2,4631.6,0.108]
[1755232233385,5.467802,4632.2,4631.6,0.108]
[1755232233566,0.15873346,4632.7,4631.6,0.108]
[1755232233768,5.57856337,4632.8,4632.1,0.108]
[1755232233973,2.15861503,4632.6,4632.1,0.108]
[1755232234507,0.9266,4632.5,4632.1,0.108]
[1755232234706,0.02698385,4632.4,4632.1,0.108]
[1755232234893,0.9266,4632.3,4630.5,0.001]
[1755232235205,15.74957235,4631.0,4630.5,0.001]
[1755232235372,13.59020783,4631.0,4630.5,0.001]
[1755232235576,0.9266,4630.9,4630.5,0.001]
[1755232235893,3.08601471,4630.9,4630.5,0.001]
[1755232236275,14.23922383,4631.5,4630.5,0.001]
[1755232236484,2.15922251,4631.3,4630.5,0.4369]
[1755232236809,2.62009665,4631.3,4630.5,0.4369]
[1755232237011,2.62005033,4631.4,4630.5,0.4369]
[1755232237204,6.421137,4631.3,4630.5,0.4369]
[1755232237403,8.58036555,4631.3,4630.5,0.4369]
[1755232237711,2.1593142,4631.1,4630.5,0.001]
[1755232237887,5.4803142,4631.1,4630.5,0.001]
[1755232238290,2.15936722,4631.0,4630.5,0.001]
[1755232238690,2.62011259,4631.0,4630.5,0.001]
[1755232238891,0.9266,4630.9,4630.5,0.001]
[1755232239098,1.61337126,4630.9,4630.5,0.001]
[1755232239293,3.08605818,4630.8,4630.5,0.001]
[1755232239485,0.9266,4630.8,4630.5,0.001]
[1755232239922,0.9266,4630.7,4630.5,0.001]
[1755232240416,0.68677126,4630.9,4630.5,0.001]
[1755232241819,3.321,4631.3,4630.5,2.16055548]
[1755232241998,0.46072678,4631.4,4630.5,2.59645548]
[1755232242194,0.63728589,4631.3,4630.5,0.001]
[1755232242399,1.06928589,4631.3,4630.5,0.001]
[1755232242901,0.4946,4631.2,4630.5,0.001]
[1755232243223,2.15941708,4630.9,4630.5,0.001]
[1755232243430,2.15935309,4631.1,4630.5,0.001]
[1755232243588,2.67704715,4631.1,4630.5,0.001]
[1755232244795,0.51769406,4631.1,4630.5,0.001]
[1755232245121,0.51769406,4631.1,4630.6,0.108]
[1755232245425,1.90502084,4631.1,4630.6,0.108]
[1755232245946,0.46072678,4631.2,4630.6,0.108]
[1755232246103,3.319,4631.3,4630.6,0.5439]
[1755232246306,3.77972678,4631.3,4630.6,2.70344575]
[1755232246490,0.46072678,4631.2,4630.6,2.70344575]
[1755232246693,0.46072678,4631.1,4630.6,2.70344575]
[1755232246993,0.108,4631.4,4630.6,0.5439]
[1755232246994,0.46072678,4631.3,4630.6,0.5439]
[1755232247193,0.56872678,4631.4,4630.6,0.108]
[1755232247421,0.46072678,4631.3,4631.1,0.108]
[1755232247724,0.46072678,4631.5,4631.1,0.108]
[1755232248046,0.46072678,4631.4,4631.1,0.108]
[1755232248324,0.46072678,4631.3,4630.8,0.108]
[1755232248620,0.46072678,4631.2,4630.8,0.108]
[1755232248825,0.46072678,4631.1,4630.8,0.108]
[1755232248998,0.46072678,4631.0,4630.8,0.108]
[1755232249196,0.46072678,4631.4,4630.8,0.108]
[1755232249518,0.46072678,4631.3,4630.8,0.108]
[1755232249732,0.46072678,4631.2,4630.8,0.108]
[1755232250029,0.46072678,4631.1,4630.8,0.108]
[1755232250318,0.46072678,4631.0,4630.8,0.108]
[1755232250535,0.46289319,4630.9,4630.8,0.5439]
[1755232250691,0.57929824,4631.5,4630.8,0.5439]
[1755232250892,0.46295699,4631.4,4630.8,2.70334671]
[1755232251198,0.57929824,4631.6,4631.2,0.108]
[1755232251199,0.46295699,4631.3,4631.2,0.108]
[1755232252295,0.46295699,4631.3,4631.2,2.73966757]
[1755232252495,0.57929824,4631.9,4631.2,2.73966757]
[1755232252701,0.46356055,4631.8,4631.2,2.73966757]
[1755232252924,0.46356055,4631.7,4631.6,0.108]
[1755232255134,0.46356055,4632.1,4631.6,0.108]
[1755232255434,0.46356055,4632.0,4631.6,0.108]
[1755232255607,0.46356055,4631.9,4631.4,2.15917319]
[1755232255814,0.46356055,4631.8,4631.4,2.15917319]
[1755232256121,0.46356055,4632.0,4631.8,0.108]
[1755232256436,0.46356055,4632.3,4631.8,0.108]
[1755232256600,0.46356055,4632.2,4631.8,0.108]
[1755232256802,2.15875767,4632.3,4631.8,0.108]
[1755232256803,0.46356055,4632.1,4631.8,0.108]
[1755232257040,0.46356055,4632.0,4631.8,0.108]
[1755232257198,2.6223809,4632.2,4631.8,0.108]
[1755232257401,1.37036055,4632.2,4631.8,0.108]
[1755232257626,0.9068,4632.2,4631.8,0.108]
[1755232257832,1.37036055,4632.2,4631.8,0.108]
[1755232258329,0.9068,4632.2,4631.8,0.108]
[1755232259103,0.002,4632.5,4631.8,0.108]
[1755232259343,0.002,4632.5,4632.0,2.15885889]
[1755232259542,0.002,4632.5,4632.4,0.108]
[1755232264336,0.002,4632.5,4631.5,6.40709779]
[1755232264337,2.15872026,4632.4,4631.5,6.40709779]
[1755232264643,0.002,4632.5,4632.0,0.108]
[1755232265042,0.9068,4632.4,4632.0,0.108]
[1755232265246,0.9068,4632.3,4632.0,0.108]
[1755232265410,0.002,4632.5,4632.0,0.108]
[1755232265607,0.9068,4632.4,4632.0,0.108]
[1755232265810,0.9068,4632.3,4632.0,0.108]
[1755232267848,2.15874501,4632.4,4632.0,0.108]
[1755232268017,0.9068,4632.2,4632.0,0.108]
[1755232268213,0.9068,4632.1,4632.0,0.108]
[1755232268539,0.9337856,4632.1,4631.2,3.43]
[1755232268736,2.15922095,4631.3,4631.2,0.108]
[1755232269052,2.15926757,4631.2,4630.8,0.108]
[1755232269249,0.9068,4631.2,4630.8,0.108]
[1755232270052,0.9068,4631.1,4630.8,0.108]
[1755232270418,0.9068,4631.0,4630.8,0.108]
[1755232272455,0.9068,4630.9,4630.8,0.108]
[1755232273056,0.9068,4630.9,4630.5,0.001]
[1755232273057,2.15945409,4630.8,4630.5,0.001]
[1755232273250,3.06625409,4630.8,4630.5,0.001]
[1755232273451,0.9068,4630.7,4630.5,0.001]
[1755232274354,2.15928854,4631.2,4630.5,0.001]
[1755232274557,0.4515,4631.3,4630.5,0.001]
[1755232274747,2.15933474,4631.1,4630.5,0.001]
[1755232274949,0.4553,4631.2,4630.5,0.001]
[1755232275142,0.46320878,4631.5,4630.5,0.001]
[1755232275143,2.15944522,4630.9,4630.5,0.001]
[1755232275749,0.9068,4630.8,4630.5,0.001]
[1755232275944,0.4553,4631.1,4630.5,0.001]
[1755232276259,2.15936082,4631.0,4630.5,0.001]
[1755232276562,2.15941189,4630.9,4630.5,0.001]
[1755232276730,2.15945723,4630.8,4630.5,0.001]
[1755232276931,3.06625723,4630.8,4630.5,0.001]
[1755232277158,0.9068,4630.7,4630.5,0.001]
[1755232278160,2.63804169,4630.6,4630.5,0.001]
[1755232278364,3.06634735,4630.6,4630.5,0.001]
[1755232278559,3.69877809,4630.6,4630.5,0.001]
[1755232279365,0.649069,4631.1,4630.5,0.001]
[1755232279555,5.47425418,4631.3,4630.5,0.001]
[1755232279556,2.15936448,4631.0,4630.5,0.001]
[1755232279861,3.315,4631.3,4630.5,0.001]
[1755232280463,0.9068,4631.2,4630.5,0.001]
[1755232281261,2.15936767,4631.0,4630.5,0.001]
[1755232281462,4.21993623,4631.2,4630.5,0.001]
[1755232281463,2.6146142,4631.1,4630.5,0.001]
[1755232281767,0.4553,4630.9,4630.5,0.001]
[1755232282470,0.4563,4630.8,4630.5,0.001]
[1755232282656,2.15950072,4630.7,4630.5,0.001]
[1755232282856,2.15954735,4630.6,4630.5,0.001]
[1755232283077,2.61584735,4630.6,4630.5,0.001]
[1755232283285,3.08104735,4630.6,4630.5,0.001]
[1755232283584,0.108,4630.6,4630.5,0.001]
[1755232284687,1.0295,4630.6,4630.5,0.001]
[1755232284856,0.9215,4630.6,4630.5,0.001]
[1755232287789,0.4652,4630.6,4630.5,0.001]
[1755232288119,0.9215,4630.6,4630.5,0.001]
[1755232288880,3.08104735,4630.6,4630.5,0.001]
[1755232289192,3.72659402,4630.6,4630.5,0.001]
[1755232289368,6.52804169,4630.6,4630.5,0.001]
[1755232289570,6.50104735,4630.6,4630.5,0.001]
[1755232291286,7.15018835,4630.6,4630.5,0.001]
[1755232293290,7.61268345,4630.6,4630.5,0.001]
[1755232293600,7.15018835,4630.6,4630.5,0.001]
[1755232294101,7.61269328,4630.6,4630.5,0.001]
[1755232294397,7.61280029,4630.6,4630.5,0.001]
[1755232296517,14.03393729,4630.6,4630.5,0.001]
[1755232297403,2.15964063,4630.4,4630.3,0.001]
[1755232297611,11.91877313,4630.4,4630.3,0.001]
[1755232297901,13.27588957,4630.4,4630.3,0.001]
[1755232299473,6.85475257,4630.4,4630.3,0.001]
[1755232299677,13.27588957,4630.4,4630.3,0.001]
[1755232300210,13.36245057,4630.4,4630.3,0.001]
[1755232301297,10.05145057,4630.4,4630.3,0.001]
[1755232301596,13.36145057,4630.4,4630.3,0.001]
[1755232302710,9.12995057,4630.4,4630.3,0.001]
[1755232302913,12.43895057,4630.4,4630.3,0.001]
[1755232303119,12.35238957,4630.4,4630.3,0.001]
[1755232304190,9.04338957,4630.4,4630.3,0.001]
[1755232304400,12.35138957,4630.4,4630.3,0.001]
[1755232304803,9.04338957,4630.4,4630.3,0.001]
[1755232305000,12.35138957,4630.4,4630.3,0.001]
[1755232305388,13.27288957,4630.4,4630.3,0.001]
[1755232305791,12.81658957,4630.4,4630.3,0.001]
[1755232306096,12.35138957,4630.4,4630.3,0.001]
[1755232306512,5.93025257,4630.4,4630.3,0.001]
[1755232307018,12.35138957,4630.4,4630.3,0.001]
[1755232308423,13.27288957,4630.4,4630.3,0.001]
[1755232308927,13.35945057,4630.4,4630.3,0.001]
[1755232309306,13.93874881,4630.4,4630.3,0.001]
[1755232309509,13.35945057,4630.4,4630.3,0.001]
[1755232310391,13.93805894,4630.4,4630.3,0.001]